[Event "Early-Titled-Tuesday-Blitz-November-28-2023"]
[Site "Chess.com"]
[Date "2023.11.28"]
[Round "10"]
[White "Laico"]
[Black "viktorgen2021"]
[Result "1-0"]
[WhiteElo "2350"]
[BlackElo "2454"]
[TimeControl "180+1"]
[EndTime "10:00:38 PST"]
[Termination "Laico won by resignation"]

1. e4 {[%clk 0:03:00.9]} 1... g6 {[%clk 0:02:54.5]} 2. h4 {[%clk 0:02:58.9]}
2... h5 {[%clk 0:02:53.5]} 3. Nf3 {[%clk 0:02:55.6]} 3... Bg7 {[%clk 0:02:53.9]}
4. Ng5 {[%clk 0:02:56.1]} 4... d6 {[%clk 0:02:44.4]} 5. d4 {[%clk 0:02:50.7]}
5... Nf6 {[%clk 0:02:42.8]} 6. Bc4 {[%clk 0:02:39.3]} 6... e6 {[%clk 0:02:20.5]}
7. Qf3 {[%clk 0:02:35.7]} 7... O-O {[%clk 0:02:19.6]} 8. Nc3 {[%clk 0:02:21.4]}
8... Nc6 {[%clk 0:02:19.3]} 9. Be3 {[%clk 0:02:19.7]} 9... a6 {[%clk 0:02:11.1]}
10. O-O-O {[%clk 0:02:05.9]} 10... b5 {[%clk 0:02:10.9]} 11. e5 {[%clk
0:02:06.3]} 11... bxc4 {[%clk 0:02:02.6]} 12. exf6 {[%clk 0:01:57.8]} 12... Bxf6
{[%clk 0:01:45.9]} 13. Qxc6 {[%clk 0:01:56.7]} 13... Rb8 {[%clk 0:01:44.1]} 14.
Qxc4 {[%clk 0:01:54.4]} 14... Bd7 {[%clk 0:01:40.4]} 15. f3 {[%clk 0:01:45.4]}
15... a5 {[%clk 0:01:37.3]} 16. g4 {[%clk 0:01:45.1]} 16... Rb4 {[%clk
0:01:26.9]} 17. Qd3 {[%clk 0:01:40.2]} 17... e5 {[%clk 0:01:22.8]} 18. Nd5
{[%clk 0:01:29.9]} 18... Rb8 {[%clk 0:01:14.3]} 19. Nxf6+ {[%clk 0:01:25.2]}
19... Qxf6 {[%clk 0:01:15.2]} 20. dxe5 {[%clk 0:01:25.2]} 20... Qxe5 {[%clk
0:01:11.9]} 21. Bd4 {[%clk 0:01:02.9]} 21... Qd5 {[%clk 0:00:59.2]} 22. gxh5
{[%clk 0:00:57.5]} 22... Qxa2 {[%clk 0:00:51.1]} 23. hxg6 {[%clk 0:00:56.2]}
23... f6 {[%clk 0:00:32.2]} 24. g7 {[%clk 0:00:51.8]} 1-0

[Event "Early-Titled-Tuesday-Blitz-November-28-2023"]
[Site "Chess.com"]
[Date "2023.11.28"]
[Round "10"]
[White "Arvids_Andrejevs"]
[Black "MaxLeto"]
[Result "0-1"]
[WhiteElo "2372"]
[BlackElo "2542"]
[TimeControl "180+1"]
[EndTime "10:00:40 PST"]
[Termination "MaxLeto won by resignation"]

1. d4 {[%clk 0:02:58.4]} 1... h5 {[%clk 0:02:58.3]} 2. e4 {[%clk 0:02:54.1]}
2... h4 {[%clk 0:02:58.2]} 3. h3 {[%clk 0:02:53.2]} 3... d6 {[%clk 0:02:56]} 4.
Nc3 {[%clk 0:02:51.9]} 4... e5 {[%clk 0:02:56.2]} 5. dxe5 {[%clk 0:02:51.4]}
5... dxe5 {[%clk 0:02:57.1]} 6. Qxd8+ {[%clk 0:02:51.6]} 6... Kxd8 {[%clk
0:02:58]} 7. Bc4 {[%clk 0:02:50.9]} 7... f6 {[%clk 0:02:57.4]} 8. Be3 {[%clk
0:02:51.4]} 8... c6 {[%clk 0:02:57.6]} 9. O-O-O+ {[%clk 0:02:51]} 9... Kc7
{[%clk 0:02:58.2]} 10. f3 {[%clk 0:02:50.9]} 10... Bb4 {[%clk 0:02:48.9]} 11.
Nge2 {[%clk 0:02:50.2]} 11... Ne7 {[%clk 0:02:48.7]} 12. a3 {[%clk 0:02:50.2]}
12... Bd6 {[%clk 0:02:35.7]} 13. b4 {[%clk 0:02:46.5]} 13... Nd7 {[%clk
0:02:28.4]} 14. Bf2 {[%clk 0:02:39.1]} 14... a5 {[%clk 0:02:23.9]} 15. Na2
{[%clk 0:02:10.5]} 15... b5 {[%clk 0:02:17.4]} 16. Bb3 {[%clk 0:02:06.5]} 16...
Nf8 {[%clk 0:02:00.9]} 17. c3 {[%clk 0:01:55.3]} 17... a4 {[%clk 0:01:50.1]} 18.
Bc2 {[%clk 0:01:53.6]} 18... Be6 {[%clk 0:01:50.6]} 19. Kb2 {[%clk 0:01:53.3]}
19... g5 {[%clk 0:01:31.9]} 20. Nac1 {[%clk 0:01:43.9]} 20... Rd8 {[%clk
0:01:26.3]} 21. Nd3 {[%clk 0:01:43.7]} 21... Bc4 {[%clk 0:01:23.5]} 22. Nec1
{[%clk 0:01:40.6]} 22... Ne6 {[%clk 0:01:20.9]} 23. Be3 {[%clk 0:01:11.5]} 23...
Rd7 {[%clk 0:01:17]} 24. Nc5 {[%clk 0:01:08.2]} 24... Bxc5 {[%clk 0:01:14.3]}
25. Bxc5 {[%clk 0:01:09.1]} 25... Nxc5 {[%clk 0:01:14.1]} 26. bxc5 {[%clk
0:01:09]} 26... Rhd8 {[%clk 0:01:12.6]} 27. Rxd7+ {[%clk 0:01:07.5]} 27... Rxd7
{[%clk 0:01:13.5]} 28. Rd1 {[%clk 0:01:06.7]} 28... Rxd1 {[%clk 0:01:11.1]} 29.
Bxd1 {[%clk 0:01:06.2]} 29... Bf1 {[%clk 0:01:12]} 30. Ne2 {[%clk 0:01:01.5]}
30... Bxg2 {[%clk 0:01:09.5]} 31. Ng1 {[%clk 0:01:02]} 31... Ng6 {[%clk
0:01:06]} 32. Kc2 {[%clk 0:00:56.9]} 32... Nf4 {[%clk 0:01:05.7]} 33. Kd2 {[%clk
0:00:56.6]} 33... Bxh3 {[%clk 0:00:59.9]} 34. Ke1 {[%clk 0:00:47.1]} 34... Be6
{[%clk 0:00:53]} 35. Bc2 {[%clk 0:00:44.3]} 35... h3 {[%clk 0:00:51.3]} 0-1

[Event "Early-Titled-Tuesday-Blitz-November-28-2023"]
[Site "Chess.com"]
[Date "2023.11.28"]
[Round "10"]
[White "Bodhanas"]
[Black "Ziyamammadov"]
[Result "1-0"]
[WhiteElo "2218"]
[BlackElo "1896"]
[TimeControl "180+1"]
[EndTime "10:00:43 PST"]
[Termination "Bodhanas won by checkmate"]

1. d4 {[%clk 0:02:59.5]} 1... Nf6 {[%clk 0:02:59.3]} 2. Nf3 {[%clk 0:02:58.9]}
2... d6 {[%clk 0:03:00.2]} 3. Bf4 {[%clk 0:02:58.5]} 3... g6 {[%clk 0:03:01.1]}
4. e3 {[%clk 0:02:58.4]} 4... Bg7 {[%clk 0:03:01.7]} 5. Bd3 {[%clk 0:02:59]}
5... O-O {[%clk 0:03:02.2]} 6. O-O {[%clk 0:02:58.4]} 6... Nbd7 {[%clk
0:03:02.7]} 7. e4 {[%clk 0:02:57.1]} 7... c5 {[%clk 0:03:01.5]} 8. c3 {[%clk
0:02:56.3]} 8... Qb6 {[%clk 0:02:55]} 9. b3 {[%clk 0:02:49.4]} 9... cxd4 {[%clk
0:02:47]} 10. cxd4 {[%clk 0:02:47.8]} 10... Nh5 {[%clk 0:02:38]} 11. Be3 {[%clk
0:02:45]} 11... Qc7 {[%clk 0:02:34.8]} 12. Nbd2 {[%clk 0:02:39.4]} 12... e5
{[%clk 0:02:28.2]} 13. Rc1 {[%clk 0:02:34]} 13... Qd8 {[%clk 0:02:18.4]} 14. Nc4
{[%clk 0:02:30]} 14... exd4 {[%clk 0:02:11.1]} 15. Bxd4 {[%clk 0:02:28.8]} 15...
Bxd4 {[%clk 0:02:04.3]} 16. Nxd4 {[%clk 0:02:27.9]} 16... Qg5 {[%clk 0:02:02.3]}
17. Nf3 {[%clk 0:02:18.7]} 17... Qf4 {[%clk 0:01:53.8]} 18. Qd2 {[%clk
0:02:10.7]} 18... Qxd2 {[%clk 0:01:41]} 19. Ncxd2 {[%clk 0:02:05.8]} 19... Ne5
{[%clk 0:01:40.4]} 20. Nxe5 {[%clk 0:02:04.5]} 20... dxe5 {[%clk 0:01:41.3]} 21.
Rfd1 {[%clk 0:02:01.7]} 21... Nf4 {[%clk 0:01:40.5]} 22. Nf1 {[%clk 0:02:01.1]}
22... Be6 {[%clk 0:01:36.9]} 23. g3 {[%clk 0:01:57.5]} 23... Nh3+ {[%clk
0:01:35.3]} 24. Kg2 {[%clk 0:01:57.1]} 24... Ng5 {[%clk 0:01:35.3]} 25. f3
{[%clk 0:01:50.2]} 25... f5 {[%clk 0:01:27.2]} 26. exf5 {[%clk 0:01:47.1]} 26...
gxf5 {[%clk 0:01:28.1]} 27. Bc4 {[%clk 0:01:46.8]} 27... Rad8 {[%clk 0:01:03.9]}
28. Bxe6+ {[%clk 0:01:36.2]} 28... Nxe6 {[%clk 0:01:02.4]} 29. Ne3 {[%clk
0:01:34.8]} 29... f4 {[%clk 0:00:58.1]} 30. Ng4 {[%clk 0:01:29.3]} 30... Rf5
{[%clk 0:00:38.9]} 31. Rxd8+ {[%clk 0:01:27.4]} 31... Nxd8 {[%clk 0:00:38.3]}
32. Rc8 {[%clk 0:01:27.4]} 32... Rf8 {[%clk 0:00:27.5]} 33. Nxe5 {[%clk
0:01:26.3]} 33... fxg3 {[%clk 0:00:27.3]} 34. hxg3 {[%clk 0:01:25.9]} 34... Re8
{[%clk 0:00:25.3]} 35. f4 {[%clk 0:01:25.1]} 35... Kg7 {[%clk 0:00:23]} 36. Rc7+
{[%clk 0:01:23.8]} 36... Kf6 {[%clk 0:00:22.2]} 37. Rxh7 {[%clk 0:01:19.7]}
37... Ne6 {[%clk 0:00:16.2]} 38. Rf7# {[%clk 0:01:17.5]} 1-0

[Event "Early-Titled-Tuesday-Blitz-November-28-2023"]
[Site "Chess.com"]
[Date "2023.11.28"]
[Round "10"]
[White "Actuary44"]
[Black "Sconko"]
[Result "0-1"]
[WhiteElo "2431"]
[BlackElo "2332"]
[TimeControl "180+1"]
[EndTime "10:00:59 PST"]
[Termination "Sconko won by checkmate"]

1. e4 {[%clk 0:03:00.9]} 1... c5 {[%clk 0:02:58.8]} 2. d4 {[%clk 0:03:01]} 2...
cxd4 {[%clk 0:02:58.6]} 3. c3 {[%clk 0:03:01.7]} 3... Nf6 {[%clk 0:02:55.7]} 4.
Bd3 {[%clk 0:03:01.2]} 4... dxc3 {[%clk 0:02:48.4]} 5. Nxc3 {[%clk 0:03:02.1]}
5... Nc6 {[%clk 0:02:46.6]} 6. f4 {[%clk 0:03:02.4]} 6... d6 {[%clk 0:02:45.1]}
7. Nf3 {[%clk 0:03:03]} 7... g6 {[%clk 0:02:44.3]} 8. O-O {[%clk 0:03:03.6]}
8... Bg7 {[%clk 0:02:44.5]} 9. Kh1 {[%clk 0:03:04.3]} 9... O-O {[%clk
0:02:44.5]} 10. Qe1 {[%clk 0:03:05]} 10... Bg4 {[%clk 0:02:43.7]} 11. Be3 {[%clk
0:03:05.4]} 11... Qa5 {[%clk 0:02:38.5]} 12. Rd1 {[%clk 0:03:03.2]} 12... Rac8
{[%clk 0:02:28.3]} 13. Bb1 {[%clk 0:02:58.3]} 13... Qh5 {[%clk 0:02:18.5]} 14.
Ne2 {[%clk 0:02:50.4]} 14... Qb5 {[%clk 0:01:47.2]} 15. Qh4 {[%clk 0:02:32.7]}
15... Qxe2 {[%clk 0:01:42.9]} 16. Rde1 {[%clk 0:02:31.8]} 16... Qxb2 {[%clk
0:01:41.3]} 17. Ng5 {[%clk 0:02:28]} 17... h6 {[%clk 0:01:24.1]} 18. h3 {[%clk
0:02:27.4]} 18... hxg5 {[%clk 0:01:21.6]} 19. fxg5 {[%clk 0:02:28.3]} 19... Be6
{[%clk 0:01:07.3]} 20. Rf2 {[%clk 0:02:17.9]} 20... Qb4 {[%clk 0:00:57.3]} 21.
Bd2 {[%clk 0:02:17.6]} 21... Qd4 {[%clk 0:00:52.5]} 22. Be3 {[%clk 0:02:17.3]}
22... Qa4 {[%clk 0:00:45.9]} 23. gxf6 {[%clk 0:02:15.9]} 23... Bxf6 {[%clk
0:00:45.5]} 24. Rxf6 {[%clk 0:02:14.3]} 24... exf6 {[%clk 0:00:20.3]} 25. Qxf6
{[%clk 0:02:15.2]} 25... Qa5 {[%clk 0:00:17.6]} 26. Bh6 {[%clk 0:01:50.2]} 26...
Qe5 {[%clk 0:00:17.3]} 27. Qh4 {[%clk 0:01:37.1]} 27... Rfe8 {[%clk 0:00:14.3]}
28. Bg5 {[%clk 0:01:32.8]} 28... Qg7 {[%clk 0:00:12.4]} 29. Rd1 {[%clk 0:01:28]}
29... Ne5 {[%clk 0:00:09.4]} 30. Rxd6 {[%clk 0:01:25.4]} 30... Qh7 {[%clk
0:00:07.8]} 31. Qg3 {[%clk 0:01:25.4]} 31... Rc5 {[%clk 0:00:06.5]} 32. Kh2
{[%clk 0:01:22.9]} 32... Rb8 {[%clk 0:00:05.1]} 33. Bf6 {[%clk 0:01:19.9]} 33...
Ng4+ {[%clk 0:00:04.9]} 34. Kg1 {[%clk 0:01:15.3]} 34... Rc1+ {[%clk 0:00:05.2]}
35. Qe1 {[%clk 0:01:14.4]} 35... Rxe1# {[%clk 0:00:05.5]} 0-1

[Event "Early-Titled-Tuesday-Blitz-November-28-2023"]
[Site "Chess.com"]
[Date "2023.11.28"]
[Round "10"]
[White "ideika"]
[Black "KorolDimitriy75"]
[Result "0-1"]
[WhiteElo "2170"]
[BlackElo "2319"]
[TimeControl "180+1"]
[EndTime "10:01:03 PST"]
[Termination "KorolDimitriy75 won by resignation"]

1. e4 {[%clk 0:02:59.9]} 1... c5 {[%clk 0:03:00.1]} 2. Nf3 {[%clk 0:02:59.4]}
2... d6 {[%clk 0:03:00.5]} 3. d4 {[%clk 0:02:59.5]} 3... cxd4 {[%clk 0:03:01.4]}
4. Nxd4 {[%clk 0:03:00.4]} 4... Nf6 {[%clk 0:03:01.9]} 5. Nc3 {[%clk 0:03:00.8]}
5... g6 {[%clk 0:03:02.5]} 6. Be3 {[%clk 0:03:00.8]} 6... Bg7 {[%clk 0:03:03.1]}
7. f3 {[%clk 0:03:01]} 7... O-O {[%clk 0:03:04]} 8. Qd2 {[%clk 0:03:01.4]} 8...
Nc6 {[%clk 0:03:04.7]} 9. g4 {[%clk 0:03:01.7]} 9... Be6 {[%clk 0:03:04.1]} 10.
h4 {[%clk 0:02:57]} 10... d5 {[%clk 0:03:03]} 11. Nxe6 {[%clk 0:02:48.5]} 11...
fxe6 {[%clk 0:03:02.8]} 12. exd5 {[%clk 0:02:38.2]} 12... Nxd5 {[%clk
0:02:54.6]} 13. Nxd5 {[%clk 0:02:12.7]} 13... Qxd5 {[%clk 0:02:36.7]} 14. Qxd5
{[%clk 0:01:57.2]} 14... exd5 {[%clk 0:02:37.6]} 15. O-O-O {[%clk 0:01:56.7]}
15... Rxf3 {[%clk 0:02:23.6]} 16. Bc5 {[%clk 0:01:49.7]} 16... e6 {[%clk
0:02:00.5]} 17. Be2 {[%clk 0:01:49]} 17... Rf7 {[%clk 0:01:43.6]} 18. h5 {[%clk
0:01:48.3]} 18... Rc8 {[%clk 0:01:20.5]} 19. hxg6 {[%clk 0:01:47.2]} 19... hxg6
{[%clk 0:01:21.4]} 20. Ba3 {[%clk 0:01:32.4]} 20... Rf2 {[%clk 0:01:04.2]} 21.
Rhe1 {[%clk 0:00:19.2]} 21... Nd4 {[%clk 0:01:02.9]} 22. Rxd4 {[%clk 0:00:16]}
22... Bxd4 {[%clk 0:01:02.1]} 23. Bd3 {[%clk 0:00:16.4]} 23... Kf7 {[%clk
0:00:58.4]} 24. c3 {[%clk 0:00:14.2]} 24... Bg7 {[%clk 0:00:56.1]} 25. Bb5
{[%clk 0:00:13.1]} 25... Bxc3 {[%clk 0:00:52.5]} 26. Bd7 {[%clk 0:00:11.5]}
26... Bxe1+ {[%clk 0:00:49.3]} 27. Bxc8 {[%clk 0:00:11.5]} 27... Bd2+ {[%clk
0:00:48.9]} 0-1

[Event "Early-Titled-Tuesday-Blitz-November-28-2023"]
[Site "Chess.com"]
[Date "2023.11.28"]
[Round "10"]
[White "Roman_Ovetchkin"]
[Black "mortngabriel"]
[Result "1-0"]
[WhiteElo "2654"]
[BlackElo "2502"]
[TimeControl "180+1"]
[EndTime "10:01:08 PST"]
[Termination "Roman_Ovetchkin won on time"]

1. d4 {[%clk 0:03:00.9]} 1... d5 {[%clk 0:03:00]} 2. c4 {[%clk 0:03:00.9]} 2...
e6 {[%clk 0:03:00.4]} 3. Nf3 {[%clk 0:03:00.5]} 3... Nf6 {[%clk 0:03:00.2]} 4.
g3 {[%clk 0:03:00.9]} 4... dxc4 {[%clk 0:02:54.6]} 5. Bg2 {[%clk 0:03:01]} 5...
Nc6 {[%clk 0:02:55]} 6. O-O {[%clk 0:02:56.8]} 6... Rb8 {[%clk 0:02:54.4]} 7.
Nc3 {[%clk 0:02:53.2]} 7... b5 {[%clk 0:02:53.9]} 8. Ne5 {[%clk 0:02:53.3]} 8...
Nxe5 {[%clk 0:02:31.7]} 9. dxe5 {[%clk 0:02:54.2]} 9... Nd7 {[%clk 0:02:21.1]}
10. Qd4 {[%clk 0:02:48.3]} 10... a6 {[%clk 0:01:57.6]} 11. a4 {[%clk 0:02:40]}
11... Bb7 {[%clk 0:01:56.6]} 12. Bxb7 {[%clk 0:02:32.4]} 12... Rxb7 {[%clk
0:01:56.7]} 13. axb5 {[%clk 0:02:33]} 13... axb5 {[%clk 0:01:57.6]} 14. Rd1
{[%clk 0:02:33.1]} 14... Be7 {[%clk 0:01:31.5]} 15. Qg4 {[%clk 0:02:26.4]} 15...
g6 {[%clk 0:01:14.5]} 16. Bh6 {[%clk 0:02:20.5]} 16... Bf8 {[%clk 0:01:00.7]}
17. Bxf8 {[%clk 0:02:06.7]} 17... Kxf8 {[%clk 0:00:57.7]} 18. Qe4 {[%clk
0:02:02.5]} 18... Rb8 {[%clk 0:00:32.6]} 19. Qc6 {[%clk 0:02:00.7]} 19... Ke7
{[%clk 0:00:30.1]} 20. Nxb5 {[%clk 0:01:57.4]} 20... Rb6 {[%clk 0:00:27.9]} 21.
Qxc4 {[%clk 0:01:57]} 21... Qb8 {[%clk 0:00:17.9]} 22. Nd4 {[%clk 0:01:38.1]}
22... c5 {[%clk 0:00:17.6]} 23. Nf3 {[%clk 0:01:35.8]} 23... Rc8 {[%clk
0:00:14.7]} 24. Qh4+ {[%clk 0:01:33.6]} 24... Ke8 {[%clk 0:00:12.3]} 25. Qxh7
{[%clk 0:01:33.5]} 25... Rxb2 {[%clk 0:00:10.9]} 26. Rxd7 {[%clk 0:01:15.1]}
26... Kxd7 {[%clk 0:00:11.8]} 27. Qxf7+ {[%clk 0:01:14.6]} 27... Kc6 {[%clk
0:00:09]} 28. Qxe6+ {[%clk 0:01:14.5]} 28... Kc7 {[%clk 0:00:04.2]} 29. Qxg6
{[%clk 0:01:10.6]} 29... Qb6 {[%clk 0:00:01.6]} 30. Qf7+ {[%clk 0:01:09.4]}
30... Kb8 {[%clk 0:00:01.7]} 31. e6 {[%clk 0:01:07.8]} 31... Rxe2 {[%clk
0:00:01.4]} 32. Ng5 {[%clk 0:00:58.7]} 1-0

[Event "Early-Titled-Tuesday-Blitz-November-28-2023"]
[Site "Chess.com"]
[Date "2023.11.28"]
[Round "10"]
[White "baki83"]
[Black "Let_it_be_1"]
[Result "1-0"]
[WhiteElo "2822"]
[BlackElo "2669"]
[TimeControl "180+1"]
[EndTime "10:01:18 PST"]
[Termination "baki83 won by resignation"]

1. e4 {[%clk 0:02:59.7]} 1... e6 {[%clk 0:03:00]} 2. d4 {[%clk 0:02:59.4]} 2...
d5 {[%clk 0:02:59.6]} 3. Nc3 {[%clk 0:02:59.9]} 3... Nf6 {[%clk 0:02:59.5]} 4.
e5 {[%clk 0:03:00.1]} 4... Ne4 {[%clk 0:02:59.7]} 5. Nxe4 {[%clk 0:02:51.6]}
5... dxe4 {[%clk 0:02:59.9]} 6. Ne2 {[%clk 0:02:51.5]} 6... c5 {[%clk
0:02:59.6]} 7. Be3 {[%clk 0:02:50.3]} 7... Nc6 {[%clk 0:02:59.3]} 8. Qd2 {[%clk
0:02:48.6]} 8... cxd4 {[%clk 0:02:54.4]} 9. Nxd4 {[%clk 0:02:48.9]} 9... Nxe5
{[%clk 0:02:48.7]} 10. O-O-O {[%clk 0:02:48.7]} 10... a6 {[%clk 0:02:24.8]} 11.
Kb1 {[%clk 0:02:35.8]} 11... Be7 {[%clk 0:02:21.9]} 12. Be2 {[%clk 0:02:24.6]}
12... O-O {[%clk 0:02:20.3]} 13. Qc3 {[%clk 0:02:19]} 13... Qe8 {[%clk
0:01:52.6]} 14. h4 {[%clk 0:01:44.3]} 14... Bd7 {[%clk 0:01:43.7]} 15. Nxe6
{[%clk 0:01:29.4]} 15... Bxe6 {[%clk 0:01:43.7]} 16. Qxe5 {[%clk 0:01:29.5]}
16... Qc6 {[%clk 0:01:43.8]} 17. Bd4 {[%clk 0:01:17.7]} 17... Bf6 {[%clk
0:01:31.8]} 18. Qg3 {[%clk 0:01:17.5]} 18... Bxa2+ {[%clk 0:01:26]} 19. Kxa2
{[%clk 0:01:15.6]} 19... Qa4+ {[%clk 0:01:26.1]} 20. Qa3 {[%clk 0:01:15.8]}
20... Qxc2 {[%clk 0:01:15]} 21. Bxf6 {[%clk 0:01:09.9]} 21... Qxe2 {[%clk
0:01:14.8]} 22. Qg3 {[%clk 0:01:08.9]} 22... g6 {[%clk 0:01:10.4]} 23. h5 {[%clk
0:00:57]} 23... Rac8 {[%clk 0:01:07.2]} 24. Qe3 {[%clk 0:00:51.8]} 24... Qb5
{[%clk 0:00:53.2]} 25. Rc1 {[%clk 0:00:33.5]} 25... Rxc1 {[%clk 0:00:43.1]} 26.
Rxc1 {[%clk 0:00:33]} 26... Qxh5 {[%clk 0:00:43.2]} 27. Qxe4 {[%clk 0:00:32.8]}
27... Qb5 {[%clk 0:00:38.8]} 28. Kb1 {[%clk 0:00:30.2]} 28... Re8 {[%clk
0:00:38.5]} 29. Qf3 {[%clk 0:00:27.7]} 29... h6 {[%clk 0:00:35.8]} 30. Bc3
{[%clk 0:00:26.7]} 30... f5 {[%clk 0:00:33.4]} 31. Rd1 {[%clk 0:00:26]} 31...
Kh7 {[%clk 0:00:32.5]} 32. Qf4 {[%clk 0:00:24.8]} 32... Re7 {[%clk 0:00:31.4]}
33. Qd4 {[%clk 0:00:24.6]} 33... g5 {[%clk 0:00:28.2]} 34. Qh8+ {[%clk
0:00:22.2]} 1-0

[Event "Early-Titled-Tuesday-Blitz-November-28-2023"]
[Site "Chess.com"]
[Date "2023.11.28"]
[Round "10"]
[White "Andrii_Prydun"]
[Black "FMStan15"]
[Result "1/2-1/2"]
[WhiteElo "2382"]
[BlackElo "2090"]
[TimeControl "180+1"]
[EndTime "10:01:26 PST"]
[Termination "Game drawn by agreement"]

1. e4 {[%clk 0:02:48]} 1... e6 {[%clk 0:02:58.5]} 2. c4 {[%clk 0:02:29.7]} 2...
d5 {[%clk 0:02:58.2]} 3. cxd5 {[%clk 0:02:30.6]} 3... exd5 {[%clk 0:02:58.1]} 4.
exd5 {[%clk 0:02:29.9]} 4... Nf6 {[%clk 0:02:55.2]} 5. Nc3 {[%clk 0:02:29.6]}
5... Nxd5 {[%clk 0:02:55]} 6. d4 {[%clk 0:02:29.8]} 6... Nxc3 {[%clk 0:02:53.9]}
7. bxc3 {[%clk 0:02:29.9]} 7... Bd6 {[%clk 0:02:54.5]} 8. Nf3 {[%clk 0:02:29.7]}
8... O-O {[%clk 0:02:53.5]} 9. Bd3 {[%clk 0:02:30.4]} 9... Re8+ {[%clk
0:02:53.1]} 10. Be3 {[%clk 0:02:30.5]} 10... Bg4 {[%clk 0:02:53]} 11. O-O {[%clk
0:02:29.5]} 11... Nd7 {[%clk 0:02:52.2]} 12. Qc2 {[%clk 0:02:27.6]} 12... Bxf3
{[%clk 0:02:27.7]} 13. gxf3 {[%clk 0:02:28.5]} 13... h6 {[%clk 0:02:25.2]} 14.
Kh1 {[%clk 0:02:25.2]} 14... Qh4 {[%clk 0:02:24.2]} 15. f4 {[%clk 0:02:24.8]}
15... Bxf4 {[%clk 0:02:21]} 16. Bxf4 {[%clk 0:02:25.7]} 16... Qxf4 {[%clk
0:02:20.6]} 17. Qd1 {[%clk 0:02:22.6]} 17... Nf6 {[%clk 0:02:16]} 18. f3 {[%clk
0:02:13.8]} 18... Re3 {[%clk 0:02:12.3]} 19. Rf2 {[%clk 0:02:12.9]} 19... Rae8
{[%clk 0:02:10.1]} 20. Rb1 {[%clk 0:02:02.3]} 20... Nd5 {[%clk 0:01:48]} 21. Rc1
{[%clk 0:01:34.2]} 21... Nxc3 {[%clk 0:01:31.6]} 22. Qd2 {[%clk 0:01:28.8]}
22... Nd5 {[%clk 0:01:22.2]} 23. Be4 {[%clk 0:01:28.4]} 23... c6 {[%clk
0:01:08]} 24. Rg2 {[%clk 0:01:09.2]} 24... f5 {[%clk 0:00:41.8]} 25. Bxd5+
{[%clk 0:01:04.2]} 25... cxd5 {[%clk 0:00:38.2]} 26. Rcg1 {[%clk 0:00:58.9]}
26... Qxf3 {[%clk 0:00:36.8]} 27. Qb4 {[%clk 0:00:44.9]} 27... b6 {[%clk
0:00:26.3]} 28. Qb5 {[%clk 0:00:43.6]} 28... Re2 {[%clk 0:00:22.3]} 29. Qc6
{[%clk 0:00:34.7]} 29... Kh7 {[%clk 0:00:16.5]} 30. Qg6+ {[%clk 0:00:32.2]}
30... Kh8 {[%clk 0:00:14]} 1/2-1/2

[Event "Early-Titled-Tuesday-Blitz-November-28-2023"]
[Site "Chess.com"]
[Date "2023.11.28"]
[Round "10"]
[White "vi_pranav"]
[Black "Meri-Arabidze"]
[Result "1-0"]
[WhiteElo "3023"]
[BlackElo "2694"]
[TimeControl "180+1"]
[EndTime "10:01:33 PST"]
[Termination "vi_pranav won on time"]

1. e4 {[%clk 0:03:00.9]} 1... c5 {[%clk 0:03:00.1]} 2. Nf3 {[%clk 0:03:01]} 2...
e6 {[%clk 0:03:00.7]} 3. d4 {[%clk 0:03:01.3]} 3... cxd4 {[%clk 0:03:01.6]} 4.
Nxd4 {[%clk 0:03:02.2]} 4... Nc6 {[%clk 0:03:01.8]} 5. Nc3 {[%clk 0:03:02.7]}
5... a6 {[%clk 0:03:01.9]} 6. Be2 {[%clk 0:03:02.5]} 6... Qc7 {[%clk 0:02:59.8]}
7. O-O {[%clk 0:03:02.4]} 7... Nf6 {[%clk 0:03:00]} 8. a4 {[%clk 0:03:02.6]}
8... Be7 {[%clk 0:02:58.6]} 9. Be3 {[%clk 0:03:02.8]} 9... d6 {[%clk 0:02:56.8]}
10. f4 {[%clk 0:03:03.3]} 10... O-O {[%clk 0:02:56.5]} 11. Kh1 {[%clk
0:03:03.3]} 11... Bd7 {[%clk 0:02:56.5]} 12. Qe1 {[%clk 0:03:01.2]} 12... Rac8
{[%clk 0:02:44.9]} 13. Qg3 {[%clk 0:02:59.3]} 13... Nb4 {[%clk 0:02:29.6]} 14.
Rac1 {[%clk 0:02:51.5]} 14... Qb8 {[%clk 0:02:23.3]} 15. Rf2 {[%clk 0:02:45.2]}
15... Rxc3 {[%clk 0:02:20.3]} 16. bxc3 {[%clk 0:02:43.7]} 16... Nxe4 {[%clk
0:02:20.5]} 17. Qf3 {[%clk 0:02:42.1]} 17... Nxf2+ {[%clk 0:02:20.2]} 18. Bxf2
{[%clk 0:02:43]} 18... Nc6 {[%clk 0:02:13.1]} 19. Rb1 {[%clk 0:02:43.1]} 19...
Rc8 {[%clk 0:02:05.8]} 20. Bd3 {[%clk 0:02:41.1]} 20... g6 {[%clk 0:02:03.4]}
21. Bxa6 {[%clk 0:02:34.4]} 21... Na5 {[%clk 0:01:36.4]} 22. h3 {[%clk
0:02:23.9]} 22... Bxa4 {[%clk 0:01:29]} 23. Rb4 {[%clk 0:02:20.1]} 23... Be8
{[%clk 0:01:11.1]} 24. Bxb7 {[%clk 0:02:18.7]} 24... Rc7 {[%clk 0:00:49.5]} 25.
Ba6 {[%clk 0:02:08.4]} 25... Qd8 {[%clk 0:00:39.6]} 26. Nb3 {[%clk 0:02:05.6]}
26... Nc6 {[%clk 0:00:37.9]} 27. Re4 {[%clk 0:02:01.2]} 27... d5 {[%clk
0:00:37]} 28. Re1 {[%clk 0:02:01]} 28... Nb8 {[%clk 0:00:23.2]} 29. Bd3 {[%clk
0:01:53.7]} 29... Nd7 {[%clk 0:00:20.8]} 30. f5 {[%clk 0:01:39.3]} 30... exf5
{[%clk 0:00:20.4]} 31. Qxd5 {[%clk 0:01:19.9]} 31... Nf6 {[%clk 0:00:20.4]} 32.
Qa5 {[%clk 0:01:17.3]} 32... Rc8 {[%clk 0:00:14.9]} 33. Bb6 {[%clk 0:01:11.2]}
33... Qd7 {[%clk 0:00:12.1]} 34. Bd4 {[%clk 0:01:10.3]} 34... Nd5 {[%clk
0:00:09.3]} 35. Rxe7 {[%clk 0:01:07]} 35... Nxe7 {[%clk 0:00:03.3]} 36. Qe5
{[%clk 0:01:07.1]} 36... f6 {[%clk 0:00:01.1]} 37. Qxf6 {[%clk 0:01:07.3]} 37...
Nd5 {[%clk 0:00:01.1]} 38. Qh8+ {[%clk 0:01:02.2]} 38... Kf7 {[%clk 0:00:01.6]}
39. c4 {[%clk 0:00:57.3]} 1-0